Cogmind - Beta 15 @@@ ROGUE MODE // 2025.07.03 @ 20:57:09 Player: KeKe Result: Destroyed by VD-7UF(R) with Subdweller Laser Performance ------------- Evolutions (0) 0 Regions Visited (3) 600 Robots Destroyed (20) 100 Value Destroyed (619) 619 Prototype IDs (0) 0 Alien Tech Used (0) 0 Bonus (0) 0 TOTAL SCORE: 1319 Bonus ------- None Cogmind --------- Core Integrity 0/250 Matter 226/300 Energy 90/200 System Corruption 0% Temperature Cool (6) Movement Rolling (235) Ox9 Location -10/Subcaves Parts ------- > --- POWER (1) -------- Subdweller Power Source > --- PROPULSION (2) --- Compact Wheel > --- UTILITY (2) ------ Cargo Storage Unit > --- WEAPON (2) ------- Light Cannon Light Cannon > --- INVENTORY (30) --- Ion Engine Light Treads Wheel Compact Wheel Weight Redist. System Structural Scanner Subdweller Optics Tractor Beam Subdweller Laser Subdweller Beam Cannon Light Cannon Mining Laser Mining Claw Peak State ------------ > --- POWER ------------ Light Ion Engine > --- PROPULSION ------- Wheel Wheel > --- UTILITY ---------- Cargo Storage Unit > --- WEAPON ----------- Light Cannon Light Cannon > --- INVENTORY -------- Ion Engine Subdweller Power Source Light Treads Wheel Wheel Compact Wheel Compact Wheel Weight Redist. System Structural Scanner Subdweller Optics Tractor Beam Subdweller Beam Cannon Light Cannon Light Cannon Mining Laser Mining Claw [Rating: 9] Favorites ----------- Power Ion Engine Engine Ion Engine Propulsion Wheel Treads Light Treads Leg Aluminum Leg Wheel Wheel Utility Cargo Storage Unit Device Structural Scanner Storage Cargo Storage Unit Weapon Light Cannon Energy Gun Small Laser Ballistic Gun Light Assault Rifle Ballistic Cannon Light Cannon Slashing Weapon Mining Claw Build | -11 -10 -10 -10 ------- Run | Yrd Mat Min Sub Slots Evolved . | . . . . Power . | . . . . Propulsion . | . . . . Utility . | . . . . Weapon . | . . . . Parts Attached 17 | . 11 3 3 Power 3 | . 1 1 1 Engine 3 | . 1 1 1 Core . | . . . . Reactor . | . . . . Propulsion 7 | . 4 2 1 Treads 1 | . 1 . . Leg . | . . . . Wheel 6 | . 3 2 1 Hover . | . . . . Flight . | . . . . Utility 2 | . 2 . . Device 1 | . 1 . . Storage 1 | . 1 . . Processor . | . . . . Hackware . | . . . . Protection . | . . . . Artifact . | . . . . Weapon 5 | . 4 . 1 Energy Gun . | . . . . Energy Cannon . | . . . . Ballistic Gun 1 | . 1 . . Ballistic Cannon 3 | . 2 . 1 Launcher . | . . . . Special Weapon . | . . . . Impact Weapon . | . . . . Slashing Weapon 1 | . 1 . . Piercing Weapon . | . . . . Special Melee Weapon . | . . . . Unidentified Prototypes . | . . . . Parts Lost 8 | . 3 . 5 Power 1 | . . . 1 Propulsion 4 | . 1 . 3 Utility . | . . . . Weapon 3 | . 2 . 1 Highest Loss Streak 4 | . 3 . 4 To Critical Strikes . | . . . . Average Backups 10 | . 6 12 15 Power 1 | . 1 1 1 Propulsion 3 | . 2 4 4 Utility 2 | . 1 3 3 Weapon 2 | . 1 4 5 Tool/Special . | . . . . Unused Backups 13 | . 6 1 6 Power 1 | . . 1 . Propulsion 4 | . 3 . 1 Utility 4 | . 1 . 3 Weapon 4 | . 2 . 2 Tool/Special . | . . . . Average Slot Usage (%) 84 | . 83 85 84 Engine 13 | . 14 14 13 Wheel 26 | . 26 28 27 Storage 14 | . 14 14 14 Ballistic Gun 12 | . 23 . . Ballistic Cannon 13 | . . 28 27 Peak Build Rating 9 | . 8 8 9 Average Rating 7 | . 6 8 8 On Entrance 7 | 6 6 8 8 Naked Turns . | . . . . Heaviest Build 151 | 13 151 149 149 Greatest Support 32 | 20 32 32 26 Greatest Overweight (x) 7 | . 5 7 7 Average Overweight (x) 4 | . 3 6 6 Largest Inventory Capacity 30 | . 30 30 30 Average Capacity 28 | . 26 30 30 Most Carried 17 | . 11 13 17 Average Carried 10 | . 6 12 15 Final Capacity 30 | 8 30 30 30 Final Carried 13 | 6 11 13 13 Class Distribution -------------------- 92% | Hauler-Mutant 7% | Mutant Dominant Class ---------------- Hauler-Mutant | -10/Materials Hauler-Mutant | -10/Mines Hauler-Mutant | -10/Subcaves Resources | -11 -10 -10 -10 ----------- Run | Yrd Mat Min Sub Matter Collected 676 | 200 269 48 159 Remotely . | . . . . Salvage Created 680 | . 552 42 86 Parts 35 | . 21 5 9 Haulers Intercepted 2 | . 2 . . Recyclers Shooed 2 | . 2 . . Parts Field Recycled . | . . . . Retrieved Matter . | . . . . Parts Self-Destructed . | . . . . Prevented . | . . . . Kills | -11 -10 -10 -10 ------- Run | Yrd Mat Min Sub Combat Hostiles Destroyed 16 | . 11 . 5 Melee 2 | . 2 . . Guns 9 | . 9 . . Cannons 5 | . . . 5 Classes Destroyed 4 | . 2 1 1 Worker 2 | . . 2 . Hauler 2 | . 2 . . Grunt 11 | . 11 . . Subdweller 5 | . . . 5 Best Kill Streak 7 | . 7 2 2 Combat Bots Only 7 | . 7 . 2 Max Kills in Single Turn 1 | . 1 1 1 Gunslinging . | . . . . Exploded . | . . . . Melee 1 | . 1 . . Uniques/NPCs Destroyed . | . . . . Combat | -11 -10 -10 -10 -------- Run | Yrd Mat Min Sub Hostile Shots Fired 91 | . 62 . 29 Missed 21 | . 12 . 9 Hits 70 | . 50 . 20 Projectile 70 | . 50 . 20 Critical Strikes 3 | . 2 . 1 Damage Taken 1195 | . 632 . 563 Core 265 | . 221 . 44 Absorbed by Shields . | . . . . Core Remaining (%) 100 | 100 . . . Volleys Fired 86 | . 59 4 23 Largest 2 | . 2 2 2 Hottest 60 | . 40 60 60 Shots Fired 158 | . 104 8 46 Gun 104 | . 104 . . Cannon 54 | . . 8 46 Launcher . | . . . . Special . | . . . . Kinetic 158 | . 104 8 46 Thermal . | . . . . Explosive . | . . . . Electromagnetic . | . . . . Robot Hit Streak 14 | . 11 4 14 Robot Miss Streak 3 | . 2 1 3 Penetration Max . | . . . . Secondary Targets . | . . . . Shots Hit Robots 118 | . 82 4 32 Core Hits 40 | . 28 2 10 Critical Kills . | . . . . Critical Parts Destroyed . | . . . . Critical Strikes . | . . . . Melee Attacks 5 | . 5 . . Impact . | . . . . Slashing 5 | . 5 . . Piercing . | . . . . Sneak Attacks . | . . . . Combat Hostiles . | . . . . Follow-up Attacks . | . . . . Damage Inflicted 1516 | . 899 69 548 Guns 786 | . 786 . . Cannons 617 | . . 69 548 Explosions . | . . . . Melee 113 | . 113 . . Ramming . | . . . . Kinetic 1403 | . 786 69 548 Thermal . | . . . . Explosive . | . . . . Electromagnetic . | . . . . Impact . | . . . . Slashing 113 | . 113 . . Piercing . | . . . . Highest Corruption . | . . . . Average Corruption . | . . . . Corruption Purged . | . . . . Corruption Blocked . | . . . . Overload Shots . | . . . . Overflow Damage . | . . . . Projectiles . | . . . . Explosions . | . . . . Melee . | . . . . Knockbacks 8 | . . 1 7 Impact . | . . . . Kinetic 8 | . . 1 7 Secondary . | . . . . Self-Inflicted Damage . | . . . . Shots . | . . . . Rammed . | . . . . Targets Rammed . | . . . . Kicked . | . . . . Crushed . | . . . . Highest Temperature 27 | . 27 20 . Average Temperature 11 | . 10 20 . Received Heat Transfer 450 | . 384 . 66 Siege Activations . | . . . . Martial Activations . | . . . . Shielding Activations . | . . . . Robots Disrupted . | . . . . Combat Hostiles . | . . . . Robots Corrupted . | . . . . Combat Hostiles . | . . . . Parts Fried . | . . . . Impact Corruptions . | . . . . Robots Melted . | . . . . Combat Hostiles . | . . . . Parts Melted . | . . . . Heat Transferred . | . . . . Parts Sabotaged . | . . . . Parts Stolen . | . . . . Parts Stripped . | . . . . Power Chain Reactions . | . . . . Alert | -11 -10 -10 -10 ------- Run | Yrd Mat Min Sub Maximum Alert Level . | . . . . Low Security (%) 100 | . 100 100 . Level 1 . | . . . . Level 2 . | . . . . Level 3 . | . . . . Level 4 . | . . . . Level 5 . | . . . . High Security . | . . . . Max Security . | . . . . Peak Influence 126 | . 126 49 . Initial 39 | . . 39 . Average 22 | . 23 19 . Influence Increases 289 | . 279 10 . Destroy 0b10 Robot/C 220 | . 220 . . Destroy 0b10 Robot/NC 20 | . 10 10 . Destroy Leader 44 | . 44 . . Successful Hack 5 | . 5 . . Influence Decreases 289 | . 177 112 . Entered New Map 63 | . . 63 . Time Decay 196 | . 147 49 . Lost Part 30 | . 30 . . Squads Dispatched 3 | . 3 . . Investigation 1 | . 1 . . Extermination . | . . . . Reinforcement 2 | . 2 . . Assault . | . . . . Garrison . | . . . . Intercept . | . . . . Searches Triggered . | . . . . Construction Impeded . | . . . . Haulers Reinforced . | . . . . Active Scanning Responses . | . . . . Cargo Convoy Interrupts . | . . . . Stealth | -11 -10 -10 -10 --------- Run | Yrd Mat Min Sub Distress Signals 1 | . 1 . . Communications Jammed . | . . . . Distress Signals . | . . . . Times Spotted 22 | . 15 . 7 Peak Tracking Total 6 | . 6 . 2 Tactical Retreats . | . . . . Traps | -11 -10 -10 -10 ------- Run | Yrd Mat Min Sub Traps Triggered 3 | . 1 . 2 Indirectly . | . . . . Trap Hack Attempts . | . . . . Triggered . | . . . . Disarmed . | . . . . Reprogrammed . | . . . . Reused . | . . . . Traps Extracted . | . . . . Installed . | . . . . Triggered . | . . . . Machines | -11 -10 -10 -10 ---------- Run | Yrd Mat Min Sub Machines Disabled . | . . . . Max in Single Turn . | . . . . Machines Repaired . | . . . . Machines Dismantled . | . . . . Machines Sabotaged . | . . . . Overloaded Fab Kills . | . . . . Hacking | -11 -10 -10 -10 --------- Run | Yrd Mat Min Sub Machines Accessed 2 | . 2 . . Terminals 2 | . 2 . . Fabricators . | . . . . Repair Stations . | . . . . Recycling Units . | . . . . Scanalyzers . | . . . . Garrison Access . | . . . . Total Hacks 2 | . 2 . . Successful 2 | . 2 . . Failed . | . . . . Catastrophic . | . . . . Database Lockouts . | . . . . Manual 2 | . 2 . . Terminals 2 | . 2 . . Fabricators . | . . . . Repair Stations . | . . . . Recycling Units . | . . . . Scanalyzers . | . . . . Garrison Access . | . . . . Terminal Hacks . | . . . . Fabricator Hacks . | . . . . Repair Station Hacks . | . . . . Recycling Unit Hacks . | . . . . Scanalyzer . | . . . . Garrison Access Hacks . | . . . . Unauthorized Hacks 2 | . 2 . . Terminals 2 | . 2 . . Botnet 2 | . 2 . . Fabricators . | . . . . Repair Stations . | . . . . Recycling Units . | . . . . Scanalyzers . | . . . . Garrison Access . | . . . . Data Cores Recovered . | . . . . Used . | . . . . Hacking Detections 1 | . 1 . . Full Trace Events . | . . . . Feedback Events . | . . . . Feedback Blocked . | . . . . Robot Schematics Acquired . | . . . . Robots Built . | . . . . Authchips . | . . . . Time . | . . . . Total Robot Build Rating . | . . . . Part Schematics Acquired . | . . . . Parts Built . | . . . . Authchips . | . . . . Time . | . . . . Total Part Build Rating . | . . . . Parts Repaired . | . . . . Time . | . . . . Parts Recycled . | . . . . Recycled Matter . | . . . . Retrieved Matter . | . . . . Retrieved Components . | . . . . Parts Scanalyzed . | . . . . Part Schematics Acquired . | . . . . Parts Damaged . | . . . . Bothacking | -11 -10 -10 -10 ------------ Run | Yrd Mat Min Sub Used RIF Installer . | . . . . Robots Hacked . | . . . . Non-combat . | . . . . Combat . | . . . . Robot Hacks Applied . | . . . . Relay Couplers Released . | . . . . Fabnet Peak Effective % . | . . . . Robots Rewired . | . . . . Allies Hacked . | . . . . Hacks Repelled . | . . . . Allies | -11 -10 -10 -10 -------- Run | Yrd Mat Min Sub Total Allies . | . . . . Largest Group . | . . . . Highest-Rated Group . | . . . . Highest-Rated Ally . | . . . . Total Orders . | . . . . Ally Attacks . | . . . . Total Damage . | . . . . Kills . | . . . . Allies Corrupted . | . . . . Allies Melted . | . . . . Intel | -11 -10 -10 -10 ------- Run | Yrd Mat Min Sub Active Infowar (turns) 34 | . 34 . . Structural 34 | . 34 . . Robot Analysis Total . | . . . . Derelict Logs Recovered 2 | . . 1 1 Drone Launches . | . . . . Drone Recoveries . | . . . . Exploration | -11 -10 -10 -10 ------------- Run | Yrd Mat Min Sub Turns Passed 1311 | . 697 141 473 Spaces Moved 590 | 1 313 68 208 Core . | . . . . Treads . | . . . . Legs 4 | 1 3 . . Wheels 586 | . 310 68 208 Hover . | . . . . Flight . | . . . . Fastest Speed 90 | 120 90 160 165 Average Speed 158 | 120 142 182 176 Slowest Speed 185 | 120 165 185 185 Overloaded Moves . | . . . . Propulsion Burnouts . | . . . . Robots Hopped . | . . . . Potential Cave-ins . | . . . . Cave-ins Triggered . | . . . . Exploration Rate (%) 26 | 2 62 17 23 Regions Visited 3 Branch Regions 2 Pre-discovered Areas 2 | . . 1 1 Known Exits Taken . | . . . . Unknown Exits Taken 3 | 1 1 1 . Scrap Searched . | . . . . Spaces Dug . | . . . . Terrain Destroyed . | . . . . Melee . | . . . . Projectile . | . . . . AOE . | . . . . Terrain Rammed . | . . . . Walls Destroyed . | . . . . Machines Disabled . | . . . . Actions | -11 -10 -10 -10 --------- Run | Yrd Mat Min Sub Total 805 | . 463 76 266 Wait 84 | . 57 . 27 Move 587 | . 312 67 208 Hop . | . . . . Pick Up 17 | . 12 1 4 Fast Attach 2 | . 2 . . Attach 9 | . 5 . 4 Detach 3 | . 3 . . Swap 7 | . 4 3 . Drop 5 | . 4 1 . Fire 86 | . 59 4 23 Melee 5 | . 5 . . Ram . | . . . . Kick . | . . . . Crush . | . . . . Escape Stasis . | . . . . Rewire . | . . . . Trap . | . . . . Miscellaneous . | . . . . Route ------- -11/Scrapyard -10/Materials (discovered 2 exits: [*Mat] / [*Min]) -10/Mines -10/Subcaves History --------- Turn | Location | Event 1 | -11/Scrapyard | Discovered new exit (range 0) 1 | -11/Scrapyard | Entered Materials 216 | -10/Materials | Discovered new exit (range 16) 395 | -10/Materials | Build established: Hauler-Mutant 599 | -10/Materials | Core integrity fell below 50% 624 | -10/Materials | Core integrity fell below 20% 648 | -10/Materials | Lost 3 parts (1n2w) 652 | -10/Materials | Destroyed 7 combat bots 665 | -10/Materials | Discovered new exit (range 16) 698 | -10/Materials | Entered Mines 820 | -10/Mines | Learned location of Storage (-8) 826 | -10/Mines | Discovered new exit (range 7) 839 | -10/Mines | Entered Subcaves 855 | -10/Subcaves | A swath of the cavern ceiling suddenly collapsed 862 | -10/Subcaves | Learned location of Zion (-6) 1067 | -10/Subcaves | Shifting Twisted Machinery released Flamer 1077 | -10/Subcaves | Shifting Twisted Machinery released Sub. Laser 1312 | -10/Subcaves | Destroyed by VD-7UF(R) with Subdweller Laser Last Messages --------------- 01011_ Acquired 3 matter. 01026_ Acquired 9 matter. 01049_ UW-T5D(R) knocked back. 01061_ UW-T5D(R) destroyed. 01066_ Acquired 21 matter. Flamer falls loose from the Twisted Machinery. 01068_ Acquired 3 matter. Sub. Laser falls loose from the Twisted Machinery. 01088_ Acquired Sub. Laser. 01135_ Triggered Piercing Trap. 01135_ Spikes shoot up from the floor. 01135_ Critical hit (Impale). 01143_ Triggered Shrapnel Trap. 01143_ An expanding cloud of shrapnel blasts out in all directions. 01143_ Wheel destroyed. 01179_ Acquired 11 matter. 01299_ Wheel destroyed. 01308_ Lgt. Ion Engine destroyed. 01309_ Lgt. Cannon destroyed. 01310_ Wheel destroyed. Map ----- +----------------------------------------------------+ | ???????????????????????????????????????????????? | | ???????????????????????????????????????????????? | | ???????????????????????????????????????????????? | | ???????????????????????????????????????????????? | | ???????????????????????????????????????????????? | | ???????????????????????????????????????????????? | | ???????????????????????????????????????????????? | | ???????????????????????????????????????????????? | | ???????????????????????????????????????????????? | | ???????????????????????????????????????????????? | | ???????????????????????????????????????????????? | | ???????????????????????????????????????????????? | | ????????????????????????????" ?????????????????? | | ???????????????????????????"" ?????????????????? | | ??????????????????????????""%??????????????????? | | ??????????????????????????""R??????????????????? | | ?????????????????????????? ??????????????????? | | ??????????????????????????R #??????????????????? | | ????????????????###??????? ##?????????????????? | | ???????????????## ##????? #?????????????????? | | ??????????????## #?###? ##?????????????????? | | ?????????????## ### ## #?????????????????? | | ?????????????# ## ##????????????????? | | ?????????????????# ##???????????????? | | ??????????????????# #???????????????? | | ?????????????????## @ #???????????????? | | ????????????????## #??????????????? | | ???????????????## #### #?????????????? | | ??????????????## #??## #?????????????? | | ????????????### #???### ## #?????????????? | | ?????????#### #??????# ##??#?????????????? | | ?????????# #???######?????????????????? | | ?????????# ### ##?## ##??????????????????? | | ?????????## ??### #?# ###????????????????? | | ?????????# ?????# ##?# ##???????????????? | | ???????? ??????# #?## #???????????????? | | ???????? ???????# ### #???????????????? | | ?????????????????# #???????????????? | | ?????????????????## #???????????????? | | ?? #?????????????#### ##??????????????? | | ?? #??????????????## #??????????????? | | ?# ?????????????## ##??????????????? | | ?# ???????????# ####???????????????? | | ?# #?# ?????# ##?????????????????? | | ?# ## ???## ###???????????????? | | ## ??## ## #???????????????? | | # #### ## #???????????????? | | # ### #???????????????? | | # ?? #?# ##???????????????? | | # ????? #### #????????????????? | +----------------------------------------------------+ Best States ------------- Heat Dissipation 25 Energy Generation 10 Energy Capacity 250 Matter Stores 300 Matter Capacity 300 Sight Range 16 Terrain Scan Density 10 Evasion (%) 42 Recoil Reduction 1 Item Schematics ----------------- None Robot Schematics ------------------ None Fabricated ------------ Nothing Repaired ---------- Nothing Alien Tech Used ----------------- None Achievements -------------- None Challenges ------------ None Game ------ Seed BlastElectronBox Manual? 0 Play Time 00:14:49 Cumulative 106.4 hours Start 2025.07.03 @ 20:44:57 End 2025.07.03 @ 20:57:09 Sessions 1 Manual Loads 0 Difficulty Rogue Special Mode None Game No. 103 Rogue 103 Adventurer 0 Explorer 0 Win Type - Total 1 Types 1/0/0/0/0/0/0/0/0/0 Lore% 57 Gallery% 47 Achievement% 47 Wizard Run 0 Options --------- Layout 0 ASCII 0 Keyboard 0 Movement Mouse Keybinds 0 Fullscreen 2 Font 18/X11 Map View 76x50 Zoom Use 0% Tactical HUD 1 Map Filters NONE Filters NONE Steam 1 RUN: c298b4d2-bb30-4e32-96c8-f0ad78b07e27